[Event "*** Titled Tuesday 3|2 Blitz"]
[Site "Chess.com"]
[Date "2015.09.01"]
[Round "4"]
[White "WanderingPuppet"]
[Black "Colombiano07"]
[Result "1-0"]
[WhiteElo "2165"]
[BlackElo "1976"]
[TimeControl "180+2"]
[EndTime "11:43:09 PDT"]
[Termination "WanderingPuppet won by resignation"]

1. e4 {[%clk 0:03:00.2]} 1... e6 {[%clk 0:03:00]} 2. d4 {[%clk 0:02:59]} 2... d5
{[%clk 0:03:01.2]} 3. Nc3 {[%clk 0:03:00.6]} 3... Nf6 {[%clk 0:03:01]} 4. Bg5
{[%clk 0:03:00.8]} 4... dxe4 {[%clk 0:03:02.4]} 5. Nxe4 {[%clk 0:03:01.9]} 5...
Be7 {[%clk 0:03:04]} 6. Bxf6 {[%clk 0:03:03.5]} 6... gxf6 {[%clk 0:03:05.9]} 7.
Nf3 {[%clk 0:03:05.4]} 7... f5 {[%clk 0:03:07.1]} 8. Nc3 {[%clk 0:03:06.9]} 8...
a6 {[%clk 0:03:07.7]} 9. Qd2 {[%clk 0:03:07.8]} 9... c5 {[%clk 0:03:08.8]} 10.
O-O-O {[%clk 0:03:09.1]} 10... Nc6 {[%clk 0:03:09.3]} 11. d5 {[%clk 0:03:09.2]}
11... Nb4 {[%clk 0:03:04.1]} 12. dxe6 {[%clk 0:03:08.9]} 12... Qxd2+ {[%clk
0:03:04.4]} 13. Rxd2 {[%clk 0:03:10.8]} 13... fxe6 {[%clk 0:03:05.9]} 14. a3
{[%clk 0:03:12.4]} 14... Nc6 {[%clk 0:03:05.3]} 15. Bd3 {[%clk 0:03:10.1]} 15...
Bd7 {[%clk 0:03:03.3]} 16. Re1 {[%clk 0:03:11.6]} 16... O-O-O {[%clk 0:03:03.4]}
17. Rde2 {[%clk 0:03:06.6]} 17... Bf6 {[%clk 0:03:02.2]} 18. Na4 {[%clk
0:03:05.1]} 18... Nd4 {[%clk 0:02:59.1]} 19. Nxd4 {[%clk 0:03:06.2]} 19... cxd4
{[%clk 0:02:59.6]} 20. Nb6+ {[%clk 0:03:07]} 20... Kc7 {[%clk 0:03:00.2]} 21.
Nxd7 {[%clk 0:03:08.9]} 21... Kxd7 {[%clk 0:03:00.7]} 22. Rxe6 {[%clk
0:03:10.1]} 22... Rhe8 {[%clk 0:02:57]} 23. Bxf5 {[%clk 0:03:10.4]} 23... Rxe6
{[%clk 0:02:57.4]} 24. Rxe6 {[%clk 0:03:12.2]} 24... Be7 {[%clk 0:02:55.5]} 25.
Rh6+ {[%clk 0:03:07]} 25... Kc7 {[%clk 0:02:54.3]} 26. Rxh7 {[%clk 0:03:07.7]}
26... Kd6 {[%clk 0:02:55.5]} 27. Kd1 {[%clk 0:03:02.3]} 27... b5 {[%clk
0:02:54.8]} 28. f3 {[%clk 0:02:59.8]} 28... a5 {[%clk 0:02:54.3]} 29. Rh6+
{[%clk 0:02:55.1]} 29... Ke5 {[%clk 0:02:54.9]} 30. Be4 {[%clk 0:02:56]} 30...
b4 {[%clk 0:02:52.6]} 31. Rh5+ {[%clk 0:02:54.7]} 31... Kf4 {[%clk 0:02:53]} 32.
Ke2 {[%clk 0:02:51.7]} 1-0

[Event "*** Titled Tuesday 3|2 Blitz"]
[Site "Chess.com"]
[Date "2015.09.01"]
[Round "4"]
[White "Storne89"]
[Black "Tobi-Wan-Kenobi"]
[Result "1-0"]
[WhiteElo "2478"]
[BlackElo "2391"]
[TimeControl "180+2"]
[EndTime "11:44:01 PDT"]
[Termination "Storne89 won by resignation"]

1. e4 {[%clk 0:03:01.9]} 1... c5 {[%clk 0:02:53.8]} 2. Nf3 {[%clk 0:03:02.7]}
2... Nc6 {[%clk 0:02:53.5]} 3. d4 {[%clk 0:03:03.6]} 3... cxd4 {[%clk
0:02:55.4]} 4. Nxd4 {[%clk 0:03:05.4]} 4... Nf6 {[%clk 0:02:57]} 5. Nc3 {[%clk
0:03:06.4]} 5... d6 {[%clk 0:02:58.5]} 6. Bg5 {[%clk 0:03:07.5]} 6... e6 {[%clk
0:02:59.5]} 7. Qd2 {[%clk 0:03:08.7]} 7... a6 {[%clk 0:03:01.1]} 8. O-O-O {[%clk
0:03:09.6]} 8... Bd7 {[%clk 0:03:02.6]} 9. f3 {[%clk 0:03:10.6]} 9... Be7 {[%clk
0:02:59.7]} 10. h4 {[%clk 0:03:10.4]} 10... Nxd4 {[%clk 0:03:00.6]} 11. Qxd4
{[%clk 0:03:11]} 11... h6 {[%clk 0:03:02]} 12. Be3 {[%clk 0:03:11.2]} 12... h5
{[%clk 0:03:02.6]} 13. Kb1 {[%clk 0:03:12.2]} 13... Qc7 {[%clk 0:03:02.7]} 14.
Qd2 {[%clk 0:03:11.7]} 14... b5 {[%clk 0:03:02.3]} 15. Bg5 {[%clk 0:03:12.6]}
15... b4 {[%clk 0:02:57.4]} 16. Ne2 {[%clk 0:03:13.2]} 16... a5 {[%clk
0:02:58.4]} 17. Nd4 {[%clk 0:03:14.5]} 17... Rb8 {[%clk 0:02:56.8]} 18. Bd3
{[%clk 0:03:08]} 18... a4 {[%clk 0:02:57]} 19. Rhe1 {[%clk 0:03:08.8]} 19... a3
{[%clk 0:02:57.2]} 20. b3 {[%clk 0:03:08.6]} 20... g6 {[%clk 0:02:46]} 21. f4
{[%clk 0:03:08]} 21... e5 {[%clk 0:02:33.9]} 22. fxe5 {[%clk 0:02:55.7]} 22...
dxe5 {[%clk 0:02:31.5]} 23. Rf1 {[%clk 0:02:52.9]} 23... Ng4 {[%clk 0:02:15.8]}
24. Bxe7 {[%clk 0:02:48.3]} 24... Kxe7 {[%clk 0:02:15.5]} 25. Bc4 {[%clk
0:02:46.7]} 25... f6 {[%clk 0:02:04]} 26. Nf3 {[%clk 0:02:34.7]} 26... Rbd8
{[%clk 0:02:00.8]} 27. Qxb4+ {[%clk 0:02:21]} 1-0

[Event "*** Titled Tuesday 3|2 Blitz"]
[Site "Chess.com"]
[Date "2015.09.01"]
[Round "4"]
[White "motivated_bishop"]
[Black "Hafez_Bakr"]
[Result "1-0"]
[WhiteElo "2042"]
[BlackElo "1715"]
[TimeControl "180+2"]
[EndTime "11:44:17 PDT"]
[Termination "motivated_bishop won by resignation"]

1. d4 {[%clk 0:03:01.9]} 1... d5 {[%clk 0:02:59.6]} 2. c4 {[%clk 0:03:02.8]}
2... c6 {[%clk 0:03:00.9]} 3. cxd5 {[%clk 0:03:03.2]} 3... cxd5 {[%clk
0:03:00.6]} 4. Bf4 {[%clk 0:03:05.1]} 4... Nf6 {[%clk 0:03:01.4]} 5. Nc3 {[%clk
0:03:05.9]} 5... e6 {[%clk 0:03:02.5]} 6. e3 {[%clk 0:03:06.6]} 6... Nc6 {[%clk
0:03:03.5]} 7. Bd3 {[%clk 0:03:04.9]} 7... Bb4 {[%clk 0:03:04.6]} 8. Nf3 {[%clk
0:02:57.9]} 8... O-O {[%clk 0:03:05]} 9. O-O {[%clk 0:02:58.7]} 9... h6 {[%clk
0:03:04.5]} 10. h3 {[%clk 0:02:59.8]} 10... Bd7 {[%clk 0:02:58.2]} 11. Qe2
{[%clk 0:02:56.5]} 11... Bxc3 {[%clk 0:02:57]} 12. bxc3 {[%clk 0:02:57.4]} 12...
Rc8 {[%clk 0:02:58.2]} 13. c4 {[%clk 0:02:56.9]} 13... dxc4 {[%clk 0:02:58.4]}
14. Bxc4 {[%clk 0:02:58]} 14... Ne4 {[%clk 0:02:56.4]} 15. Rfc1 {[%clk
0:02:56.9]} 15... Na5 {[%clk 0:02:53.5]} 16. Bd3 {[%clk 0:02:56.8]} 16... Bc6
{[%clk 0:02:51.6]} 17. Ne5 {[%clk 0:02:56.1]} 17... Bd5 {[%clk 0:02:50.7]} 18.
Bxh6 {[%clk 0:02:53]} 18... gxh6 {[%clk 0:02:49.3]} 19. Bxe4 {[%clk 0:02:53.6]}
19... Bxe4 {[%clk 0:02:49.2]} 20. Qg4+ {[%clk 0:02:44.2]} 20... Bg6 {[%clk
0:02:49.5]} 21. Nxg6 {[%clk 0:02:38.6]} 21... Rxc1+ {[%clk 0:02:49.7]} 22. Rxc1
{[%clk 0:02:39]} 22... fxg6 {[%clk 0:02:49.2]} 23. Qxg6+ {[%clk 0:02:39.1]}
23... Kh8 {[%clk 0:02:49.2]} 24. Qxh6+ {[%clk 0:02:39.7]} 24... Kg8 {[%clk
0:02:49.3]} 25. Qg6+ {[%clk 0:02:39.9]} 25... Kh8 {[%clk 0:02:49.5]} 26. Qh6+
{[%clk 0:02:25]} 26... Kg8 {[%clk 0:02:49.7]} 27. Qxe6+ {[%clk 0:02:18.8]} 27...
Rf7 {[%clk 0:02:49]} 28. Rc8 {[%clk 0:02:19.2]} 28... Qxc8 {[%clk 0:02:40.7]}
29. Qxc8+ {[%clk 0:02:18.8]} 29... Kg7 {[%clk 0:02:42.6]} 30. Qg4+ {[%clk
0:02:17.5]} 30... Kf8 {[%clk 0:02:42.7]} 31. d5 {[%clk 0:02:18.2]} 31... b6
{[%clk 0:02:41.6]} 32. Qc8+ {[%clk 0:02:14.9]} 32... Kg7 {[%clk 0:02:41]} 33. d6
{[%clk 0:02:16.4]} 33... Nb7 {[%clk 0:02:35.6]} 34. d7 {[%clk 0:02:17.1]} 34...
Nd6 {[%clk 0:02:33.9]} 35. Qc3+ {[%clk 0:02:15.9]} 1-0

[Event "*** Titled Tuesday 3|2 Blitz"]
[Site "Chess.com"]
[Date "2015.09.01"]
[Round "4"]
[White "WarlordX"]
[Black "jup1978"]
[Result "1-0"]
[WhiteElo "2215"]
[BlackElo "2152"]
[TimeControl "180+2"]
[EndTime "11:45:31 PDT"]
[Termination "WarlordX won by resignation"]

1. d4 {[%clk 0:03:01.9]} 1... d5 {[%clk 0:02:57.5]} 2. c4 {[%clk 0:03:03.2]}
2... c6 {[%clk 0:02:58.8]} 3. Nc3 {[%clk 0:03:04.9]} 3... Nf6 {[%clk 0:02:59.6]}
4. cxd5 {[%clk 0:03:06.4]} 4... cxd5 {[%clk 0:03:00.3]} 5. Bf4 {[%clk 0:03:08]}
5... Nc6 {[%clk 0:03:01.4]} 6. e3 {[%clk 0:03:09.1]} 6... a6 {[%clk 0:03:02.8]}
7. Bd3 {[%clk 0:03:09]} 7... e6 {[%clk 0:03:01]} 8. Nf3 {[%clk 0:03:08.2]} 8...
b5 {[%clk 0:03:00.7]} 9. a3 {[%clk 0:03:08.7]} 9... Be7 {[%clk 0:02:58.5]} 10.
O-O {[%clk 0:03:09.8]} 10... O-O {[%clk 0:02:59.4]} 11. Rc1 {[%clk 0:03:11.5]}
11... Bb7 {[%clk 0:03:00.3]} 12. b4 {[%clk 0:03:12.4]} 12... Rc8 {[%clk
0:02:59.3]} 13. Nb1 {[%clk 0:03:13.3]} 13... Nh5 {[%clk 0:02:59.4]} 14. Bg3
{[%clk 0:03:04.7]} 14... Nxg3 {[%clk 0:02:59.1]} 15. hxg3 {[%clk 0:03:06.6]}
15... Bf6 {[%clk 0:02:55.9]} 16. Nbd2 {[%clk 0:03:07.8]} 16... e5 {[%clk
0:02:53.1]} 17. dxe5 {[%clk 0:03:08.8]} 17... Nxe5 {[%clk 0:02:53.9]} 18. Nxe5
{[%clk 0:03:10.3]} 18... Bxe5 {[%clk 0:02:53.6]} 19. Bxh7+ {[%clk 0:02:48.2]}
19... Kxh7 {[%clk 0:02:50.8]} 20. Qh5+ {[%clk 0:02:48.4]} 20... Kg8 {[%clk
0:02:51.4]} 21. Qxe5 {[%clk 0:02:49.5]} 21... Re8 {[%clk 0:02:52.7]} 22. Qd4
{[%clk 0:02:48.5]} 22... Qd6 {[%clk 0:02:23.8]} 23. Qd3 {[%clk 0:02:32.8]} 23...
Rcd8 {[%clk 0:02:16.6]} 24. Nb3 {[%clk 0:02:32.6]} 24... d4 {[%clk 0:02:15.4]}
25. Nxd4 {[%clk 0:02:32.6]} 25... Qd5 {[%clk 0:02:05.9]} 26. f3 {[%clk
0:02:33.9]} 26... Qe5 {[%clk 0:02:03.7]} 27. Kf2 {[%clk 0:02:14.2]} 27... Bd5
{[%clk 0:01:58.1]} 28. Rc5 {[%clk 0:02:14.5]} 28... Qd6 {[%clk 0:01:48]} 29. Rh1
{[%clk 0:02:15.2]} 29... g6 {[%clk 0:01:48.4]} 30. Qc3 {[%clk 0:02:13]} 30...
Bc4 {[%clk 0:01:42.8]} 31. Rh8+ {[%clk 0:01:48.8]} 31... Kxh8 {[%clk 0:01:28.8]}
32. Ne6+ {[%clk 0:01:49.6]} 1-0

[Event "*** Titled Tuesday 3|2 Blitz"]
[Site "Chess.com"]
[Date "2015.09.01"]
[Round "4"]
[White "Moltini"]
[Black "PauloCesarCosta"]
[Result "1-0"]
[WhiteElo "2154"]
[BlackElo "2013"]
[TimeControl "180+2"]
[EndTime "11:46:00 PDT"]
[Termination "Moltini won on time"]

1. d4 {[%clk 0:03:01.9]} 1... d5 {[%clk 0:02:59.9]} 2. c4 {[%clk 0:03:02.8]}
2... c6 {[%clk 0:03:00.7]} 3. Nc3 {[%clk 0:03:03.7]} 3... e6 {[%clk 0:03:01.5]}
4. Nf3 {[%clk 0:03:05]} 4... dxc4 {[%clk 0:03:02.3]} 5. a4 {[%clk 0:03:06.2]}
5... Bb4 {[%clk 0:03:02.4]} 6. e3 {[%clk 0:03:06.7]} 6... b5 {[%clk 0:03:03.1]}
7. Ne5 {[%clk 0:03:07.7]} 7... Nf6 {[%clk 0:02:52.8]} 8. Qf3 {[%clk 0:03:03.9]}
8... Qd5 {[%clk 0:02:46.6]} 9. Be2 {[%clk 0:03:02.9]} 9... Nbd7 {[%clk
0:02:09.3]} 10. Nxc6 {[%clk 0:02:55.3]} 10... Bxc3+ {[%clk 0:02:06.7]} 11. bxc3
{[%clk 0:02:55.8]} 11... Bb7 {[%clk 0:01:45.1]} 12. Qxd5 {[%clk 0:02:32.8]}
12... Nxd5 {[%clk 0:01:40.6]} 13. axb5 {[%clk 0:02:33.9]} 13... Nxc3 {[%clk
0:01:39.9]} 14. Bxc4 {[%clk 0:02:34.9]} 14... Nb6 {[%clk 0:01:28.3]} 15. Bd3
{[%clk 0:02:33.9]} 15... Bxc6 {[%clk 0:01:22.1]} 16. bxc6 {[%clk 0:02:34.1]}
16... O-O {[%clk 0:01:17.7]} 17. Bd2 {[%clk 0:02:34.5]} 17... Ncd5 {[%clk
0:01:15.4]} 18. O-O {[%clk 0:02:34.9]} 18... Rfc8 {[%clk 0:01:12.9]} 19. Rfc1
{[%clk 0:02:35.7]} 19... Ne7 {[%clk 0:00:34.7]} 20. Be4 {[%clk 0:02:31.1]} 20...
f5 {[%clk 0:00:27.8]} 21. Bf3 {[%clk 0:02:31.4]} 21... Rc7 {[%clk 0:00:24.9]}
22. Bb4 {[%clk 0:02:24.3]} 22... Ned5 {[%clk 0:00:23.7]} 23. Bd6 {[%clk
0:02:24.2]} 23... Rcc8 {[%clk 0:00:18.9]} 24. c7 {[%clk 0:02:23.3]} 24... a5
{[%clk 0:00:04.2]} 25. Rab1 {[%clk 0:02:23.2]} 25... Ra7 {[%clk 0:00:03.1]} 26.
Bxd5 {[%clk 0:02:21.5]} 26... Nxd5 {[%clk 0:00:03.9]} 27. Rb8 {[%clk 0:02:22.3]}
1-0

[Event "*** Titled Tuesday 3|2 Blitz"]
[Site "Chess.com"]
[Date "2015.09.01"]
[Round "4"]
[White "MattyDPerrine"]
[Black "FairChess_on_YouTube"]
[Result "0-1"]
[WhiteElo "2253"]
[BlackElo "2721"]
[TimeControl "180+2"]
[EndTime "11:46:10 PDT"]
[Termination "FairChess_on_YouTube won by resignation"]

1. d4 {[%clk 0:02:56.7]} 1... Nf6 {[%clk 0:03:00.2]} 2. c4 {[%clk 0:02:56.1]}
2... e6 {[%clk 0:03:01]} 3. Nc3 {[%clk 0:02:57]} 3... Bb4 {[%clk 0:03:01.3]} 4.
Qc2 {[%clk 0:02:58.6]} 4... c5 {[%clk 0:03:00.1]} 5. dxc5 {[%clk 0:02:59.3]}
5... Na6 {[%clk 0:03:01.3]} 6. Nf3 {[%clk 0:03:00.6]} 6... Nxc5 {[%clk
0:03:01.9]} 7. g3 {[%clk 0:03:02.3]} 7... b6 {[%clk 0:02:56.7]} 8. Bg2 {[%clk
0:03:03.2]} 8... Bb7 {[%clk 0:02:58.2]} 9. O-O {[%clk 0:03:03.9]} 9... O-O
{[%clk 0:02:59.5]} 10. a3 {[%clk 0:03:02.9]} 10... Bxc3 {[%clk 0:02:57.9]} 11.
Qxc3 {[%clk 0:03:04.8]} 11... Rc8 {[%clk 0:02:58.3]} 12. Rd1 {[%clk 0:02:59.1]}
12... Qe7 {[%clk 0:02:52.6]} 13. Bf4 {[%clk 0:02:49.3]} 13... d5 {[%clk
0:02:48.6]} 14. Qb4 {[%clk 0:01:56.8]} 14... Rfd8 {[%clk 0:02:37.4]} 15. Ne5
{[%clk 0:01:20]} 15... d4 {[%clk 0:02:21.1]} 16. Bxb7 {[%clk 0:00:53.2]} 16...
Qxb7 {[%clk 0:02:21.6]} 17. Nf3 {[%clk 0:00:20.5]} 17... d3 {[%clk 0:02:19.8]}
18. Qe1 {[%clk 0:00:21.6]} 18... Nb3 {[%clk 0:02:17.1]} 19. Rab1 {[%clk
0:00:21]} 19... Rxc4 {[%clk 0:02:18.6]} 20. Bg5 {[%clk 0:00:16.7]} 20... Rc2
{[%clk 0:02:14.3]} 21. Ne5 {[%clk 0:00:06.6]} 21... d2 {[%clk 0:02:11.2]} 22.
Qf1 {[%clk 0:00:07]} 22... Qe4 {[%clk 0:02:06.2]} 23. Nd3 {[%clk 0:00:08.2]}
23... Nd4 {[%clk 0:02:00.2]} 24. Be3 {[%clk 0:00:05.9]} 24... Nxe2+ {[%clk
0:01:58.9]} 25. Qxe2 {[%clk 0:00:07.8]} 25... Rxd3 {[%clk 0:01:57.9]} 26. b4
{[%clk 0:00:02.8]} 26... h6 {[%clk 0:01:57.5]} 0-1

[Event "*** Titled Tuesday 3|2 Blitz"]
[Site "Chess.com"]
[Date "2015.09.01"]
[Round "4"]
[White "Krutoy123"]
[Black "Fawolizzo"]
[Result "1-0"]
[WhiteElo "2197"]
[BlackElo "1973"]
[TimeControl "180+2"]
[EndTime "11:47:04 PDT"]
[Termination "Krutoy123 won by resignation"]

1. e4 {[%clk 0:03:01.9]} 1... c5 {[%clk 0:03:00.2]} 2. Nf3 {[%clk 0:03:00.8]}
2... d6 {[%clk 0:03:01]} 3. d4 {[%clk 0:03:02]} 3... cxd4 {[%clk 0:03:02.1]} 4.
Nxd4 {[%clk 0:03:03.9]} 4... Nf6 {[%clk 0:03:03.2]} 5. f3 {[%clk 0:03:05.3]}
5... h5 {[%clk 0:03:03]} 6. c4 {[%clk 0:03:06.2]} 6... e6 {[%clk 0:03:01.4]} 7.
Nc3 {[%clk 0:03:05.3]} 7... Be7 {[%clk 0:03:00.8]} 8. Be3 {[%clk 0:03:06.4]}
8... a6 {[%clk 0:03:00.3]} 9. Be2 {[%clk 0:03:07.8]} 9... Bd7 {[%clk 0:02:57.4]}
10. O-O {[%clk 0:03:09.2]} 10... Nc6 {[%clk 0:02:58.4]} 11. Rc1 {[%clk
0:03:09.2]} 11... Rc8 {[%clk 0:02:57.8]} 12. Qd2 {[%clk 0:03:10]} 12... O-O
{[%clk 0:02:56.8]} 13. Rfd1 {[%clk 0:03:09.5]} 13... Ne5 {[%clk 0:02:57.3]} 14.
b3 {[%clk 0:03:08.8]} 14... Qc7 {[%clk 0:02:55.2]} 15. h3 {[%clk 0:03:09.4]}
15... b6 {[%clk 0:02:51]} 16. Kh1 {[%clk 0:03:10]} 16... h4 {[%clk 0:02:49.6]}
17. f4 {[%clk 0:03:11]} 17... Nc6 {[%clk 0:02:46.6]} 18. Bf3 {[%clk 0:03:10.8]}
18... Rfd8 {[%clk 0:02:36.6]} 19. Nd5 {[%clk 0:03:06.1]} 19... exd5 {[%clk
0:02:29.8]} 20. cxd5 {[%clk 0:03:08]} 20... Qb7 {[%clk 0:02:11.7]} 21. dxc6
{[%clk 0:03:08.4]} 21... Bxc6 {[%clk 0:02:01.5]} 22. Nxc6 {[%clk 0:03:10.3]}
22... Rxc6 {[%clk 0:02:01.9]} 23. Rxc6 {[%clk 0:03:12.2]} 23... Qxc6 {[%clk
0:02:00.2]} 24. e5 {[%clk 0:03:13.5]} 24... Ne4 {[%clk 0:02:00.9]} 25. Qc1
{[%clk 0:02:56]} 25... Ng3+ {[%clk 0:01:54.3]} 26. Kg1 {[%clk 0:02:56.3]} 26...
Qxc1 {[%clk 0:01:53.4]} 27. Rxc1 {[%clk 0:02:52.9]} 27... dxe5 {[%clk
0:01:54.4]} 28. fxe5 {[%clk 0:02:54.1]} 28... Rd3 {[%clk 0:01:53.9]} 29. Bxb6
{[%clk 0:02:55.1]} 29... g6 {[%clk 0:01:48.9]} 30. Rd1 {[%clk 0:02:52.2]} 30...
Rc3 {[%clk 0:01:48]} 31. Bd4 {[%clk 0:02:34.3]} 31... Rc2 {[%clk 0:01:46.4]} 32.
a4 {[%clk 0:02:35.5]} 32... Nf5 {[%clk 0:01:43]} 33. Bf2 {[%clk 0:02:31.2]}
33... Bc5 {[%clk 0:01:40.2]} 34. Bxc5 {[%clk 0:02:31.5]} 34... Rxc5 {[%clk
0:01:41.1]} 35. b4 {[%clk 0:02:30.7]} 35... Rxe5 {[%clk 0:01:41.8]} 36. Kf2
{[%clk 0:02:22.7]} 36... Ng3 {[%clk 0:01:38.5]} 37. Rb1 {[%clk 0:02:09.1]} 37...
Re6 {[%clk 0:01:27.9]} 38. b5 {[%clk 0:02:09]} 38... axb5 {[%clk 0:01:29.1]} 39.
axb5 {[%clk 0:02:10.9]} 39... Rb6 {[%clk 0:01:29.3]} 40. Ke3 {[%clk 0:02:09.1]}
40... Kf8 {[%clk 0:01:28.3]} 41. Kd4 {[%clk 0:02:09.5]} 41... Ke7 {[%clk
0:01:24.4]} 42. Kc5 {[%clk 0:02:09.7]} 42... Rb8 {[%clk 0:01:25.3]} 43. b6
{[%clk 0:02:10.9]} 43... Kd7 {[%clk 0:01:18.8]} 44. Rd1+ {[%clk 0:02:11.3]}
44... Kc8 {[%clk 0:01:18.8]} 45. Bg4+ {[%clk 0:02:03.7]} 45... f5 {[%clk
0:01:16.5]} 46. Bf3 {[%clk 0:02:04.2]} 46... g5 {[%clk 0:01:03.4]} 47. Kc6
{[%clk 0:02:03.7]} 47... Rb7 {[%clk 0:01:01.7]} 48. Re1 {[%clk 0:02:01.8]} 48...
Rd7 {[%clk 0:00:55.4]} 49. b7+ {[%clk 0:02:01.5]} 1-0

[Event "*** Titled Tuesday 3|2 Blitz"]
[Site "Chess.com"]
[Date "2015.09.01"]
[Round "4"]
[White "enen0315"]
[Black "Badouuu"]
[Result "1-0"]
[WhiteElo "1925"]
[BlackElo "1846"]
[TimeControl "180+2"]
[EndTime "11:47:11 PDT"]
[Termination "enen0315 won on time"]

1. d4 {[%clk 0:03:01.9]} 1... Nf6 {[%clk 0:02:48.3]} 2. c4 {[%clk 0:03:02.5]}
2... e6 {[%clk 0:02:50.2]} 3. Nc3 {[%clk 0:03:02.9]} 3... c5 {[%clk 0:02:49.9]}
4. d5 {[%clk 0:03:03.4]} 4... exd5 {[%clk 0:02:47.1]} 5. cxd5 {[%clk 0:03:04]}
5... d6 {[%clk 0:02:49]} 6. e4 {[%clk 0:03:04.5]} 6... g6 {[%clk 0:02:47.4]} 7.
Bd3 {[%clk 0:03:01]} 7... Bg7 {[%clk 0:02:47.4]} 8. h3 {[%clk 0:03:01.7]} 8...
O-O {[%clk 0:02:48.1]} 9. Nf3 {[%clk 0:03:03]} 9... a6 {[%clk 0:02:49.2]} 10. a4
{[%clk 0:03:03.3]} 10... Re8 {[%clk 0:02:49.5]} 11. O-O {[%clk 0:03:03.7]} 11...
Qc7 {[%clk 0:02:42.9]} 12. Bf4 {[%clk 0:03:02.6]} 12... Nbd7 {[%clk 0:02:36.9]}
13. Re1 {[%clk 0:03:00.4]} 13... c4 {[%clk 0:02:35]} 14. Bc2 {[%clk 0:02:51.8]}
14... Nc5 {[%clk 0:02:29.9]} 15. e5 {[%clk 0:02:48.9]} 15... dxe5 {[%clk
0:02:28.6]} 16. Bxe5 {[%clk 0:02:39.8]} 16... Qd8 {[%clk 0:02:27.8]} 17. Qd4
{[%clk 0:02:18.2]} 17... Nb3 {[%clk 0:02:19]} 18. Bxb3 {[%clk 0:02:17]} 18...
cxb3 {[%clk 0:02:20.9]} 19. Qc4 {[%clk 0:01:56.1]} 19... Bf5 {[%clk 0:02:13]}
20. Qxb3 {[%clk 0:01:53.6]} 20... Qd7 {[%clk 0:02:06.1]} 21. a5 {[%clk
0:01:50.7]} 21... Rad8 {[%clk 0:01:43.7]} 22. Rad1 {[%clk 0:01:49.7]} 22... Rc8
{[%clk 0:01:04.4]} 23. Qb6 {[%clk 0:01:23.6]} 23... Bc2 {[%clk 0:00:17]} 24. Rd2
{[%clk 0:01:04.3]} 1-0

[Event "*** Titled Tuesday 3|2 Blitz"]
[Site "Chess.com"]
[Date "2015.09.01"]
[Round "4"]
[White "Keaton87"]
[Black "ChadaevNikolay"]
[Result "0-1"]
[WhiteElo "2412"]
[BlackElo "2593"]
[TimeControl "180+2"]
[EndTime "11:47:24 PDT"]
[Termination "ChadaevNikolay won by resignation"]

1. d4 {[%clk 0:03:01.9]} 1... Nf6 {[%clk 0:02:59.8]} 2. Nf3 {[%clk 0:03:01.9]}
2... g6 {[%clk 0:03:00.1]} 3. Bg5 {[%clk 0:03:02.8]} 3... Bg7 {[%clk 0:03:01]}
4. Nbd2 {[%clk 0:03:03.3]} 4... d5 {[%clk 0:03:00.1]} 5. e3 {[%clk 0:03:03.1]}
5... O-O {[%clk 0:02:58.8]} 6. c3 {[%clk 0:03:03.6]} 6... Nbd7 {[%clk
0:02:59.3]} 7. Be2 {[%clk 0:03:04.5]} 7... Re8 {[%clk 0:03:00.8]} 8. O-O {[%clk
0:03:04.5]} 8... e5 {[%clk 0:03:01.9]} 9. b4 {[%clk 0:03:03.2]} 9... c6 {[%clk
0:03:00.2]} 10. a4 {[%clk 0:03:03.4]} 10... h6 {[%clk 0:03:00.7]} 11. Bh4 {[%clk
0:03:00.8]} 11... Qe7 {[%clk 0:02:38.8]} 12. b5 {[%clk 0:02:59.4]} 12... c5
{[%clk 0:02:37.8]} 13. dxe5 {[%clk 0:02:51.8]} 13... Nxe5 {[%clk 0:02:38.3]} 14.
Bg3 {[%clk 0:02:45.9]} 14... Nxf3+ {[%clk 0:02:33.8]} 15. Bxf3 {[%clk
0:02:44.2]} 15... Bf5 {[%clk 0:02:29.5]} 16. Nb3 {[%clk 0:02:22.9]} 16... Rad8
{[%clk 0:02:28.6]} 17. Rc1 {[%clk 0:02:15.8]} 17... Ne4 {[%clk 0:02:29.3]} 18.
Bxe4 {[%clk 0:02:12.6]} 18... dxe4 {[%clk 0:02:13.7]} 19. Qc2 {[%clk 0:01:45.1]}
19... Rd3 {[%clk 0:02:14.1]} 20. Qb2 {[%clk 0:01:44.4]} 20... Red8 {[%clk
0:02:11.5]} 21. Na5 {[%clk 0:01:43.4]} 21... R8d7 {[%clk 0:02:04.7]} 22. Bb8
{[%clk 0:01:29.1]} 22... Qd8 {[%clk 0:02:02.1]} 23. Nc6 {[%clk 0:01:08.7]} 23...
bxc6 {[%clk 0:01:40.2]} 24. bxc6 {[%clk 0:01:10.6]} 24... Re7 {[%clk 0:01:40.6]}
25. Bg3 {[%clk 0:00:59.2]} 25... Be5 {[%clk 0:01:26.5]} 26. Bxe5 {[%clk
0:00:57.3]} 26... Rxe5 {[%clk 0:01:27.5]} 27. Qb7 {[%clk 0:00:55.7]} 27... Re7
{[%clk 0:01:27.4]} 28. Qb5 {[%clk 0:00:54.8]} 28... Qd6 {[%clk 0:01:22]} 29. Rb1
{[%clk 0:00:46.6]} 29... Rc7 {[%clk 0:01:21.4]} 30. Qb8+ {[%clk 0:00:46.8]}
30... Kg7 {[%clk 0:01:22.2]} 31. Qe8 {[%clk 0:00:45]} 31... Qxc6 {[%clk
0:01:12.5]} 32. Qe5+ {[%clk 0:00:45.6]} 32... f6 {[%clk 0:01:13.3]} 33. Qf4
{[%clk 0:00:43.2]} 33... Qd6 {[%clk 0:01:09.1]} 34. Qh4 {[%clk 0:00:40.5]} 34...
g5 {[%clk 0:01:07.7]} 35. Qh5 {[%clk 0:00:39.6]} 35... Bg6 {[%clk 0:01:08.4]}
36. Qg4 {[%clk 0:00:38.9]} 36... h5 {[%clk 0:01:08.7]} 37. Qe2 {[%clk
0:00:37.7]} 37... Rxc3 {[%clk 0:01:09.6]} 38. Rb8 {[%clk 0:00:37.4]} 38... Rd3
{[%clk 0:01:10.4]} 39. Qb2 {[%clk 0:00:37.8]} 39... c4 {[%clk 0:01:10.1]} 0-1